fUST/lending_fUST_20260423
["ID","MTS","AMOUNT","RATE_DAILY","PERIOD"]
[421024084,1776942552944,-420.0,0.00010776,2]
[421024085,1776942552981,-1680.0,0.00010777,2]
[421024086,1776942553007,-271.09,0.00011622,2]
[421024087,1776942553035,-484.0,0.00011853,2]
[421024088,1776942553088,-305.0,0.00011854,2]
[421024089,1776942553143,-156.0,0.00013699,2]
[421024090,1776942553171,-346.65173894,0.00013699,2]
[421024091,1776942558111,-532.2320686,0.00013699,2]
[421024094,1776942615808,26139.18946543,0.0002444,120]
[421024116,1776942632621,-121.11619246,0.00013699,2]
[421024118,1776942632630,-299.55976927,0.00018,30]
[421024195,1776942638943,-2202.73976948,0.00018,30]
[421024197,1776942638953,-453.29496767,0.00019,2]
[421024199,1776942638963,-155.25,0.00019,2]
[421024201,1776942638972,-152.0,0.00019067,7]
[421024203,1776942638982,-184.0,0.00019772,2]
[421024205,1776942638991,-500.0,0.00019898,2]
[421024207,1776942639000,-500.0,0.00019898,2]
[421024209,1776942639009,-154.24031647,0.00019898,2]
[421024211,1776942639019,-500.0,0.00019898,2]
[421024212,1776942639028,-500.0,0.00019898,2]
[421024214,1776942639038,-500.0,0.00019898,2]
[421024216,1776942639047,-484.22133065,0.00019898,2]
[421024218,1776942639056,-910.15031626,0.00019899,2]
[421024220,1776942639065,-910.15031625,0.00019899,2]
[421024222,1776942639074,-910.15031625,0.000199,2]
[421024224,1776942639083,-910.15031625,0.000199,2]
[421024226,1776942639092,-910.15031625,0.000199,2]
[421024228,1776942639101,-66600.77018291,0.000199,2]
[421024230,1776942639110,-12500.0327115,0.0002,2]
[421024232,1776942639120,-182.0,0.0002,2]
[421024234,1776942639129,-158.0,0.0002,2]
[421024235,1776942639138,-296.0,0.0002,2]
[421024237,1776942639148,-6941.60275147,0.0002,2]
[421024288,1776942647152,-6906.44811364,0.0002,2]
[421024289,1776942647259,-906.62745852,0.0002,2]
[421024292,1776942647271,-1888.90328211,0.0002,2]
[421024304,1776942647577,-3166.47645286,0.0002,2]
[421024305,1776942647588,-1275.38190145,0.0002,2]
[421024306,1776942657975,2000.0,0.000119,2]
[421024307,1776942658573,2000.0,0.000118,2]
[421024308,1776942659159,2000.0,0.000117,2]
[421024309,1776942659735,2000.0,0.000116,2]
[421024310,1776942660309,2000.0,0.000115,2]
[421024311,1776942660877,2000.0,0.000114,2]
[421024312,1776942661495,1479.62437289,0.000113,2]
[421024313,1776943498884,-2303.32005909,0.0001078,2]
[421024314,1776943498908,-5000.0,0.00010889,2]
[421024315,1776943498932,-150.0,0.00011166,2]
[421024316,1776943498954,-156.59,0.000113,2]
[421024317,1776943498976,-150.0,0.000117,2]
[421024318,1776943498998,-215.38,0.000118,2]
[421024319,1776943499021,-1200.0,0.00011896,2]
[421024320,1776943499043,-504.0,0.00011896,2]
[421024321,1776943499064,-320.70994091,0.00011897,2]
[421024322,1776943524462,-7593.41490693,0.00011897,2]
[421024323,1776943524485,-1200.0,0.00011898,2]
[421024324,1776943524509,-300.0,0.00011899,2]
[421024325,1776943524532,-300.0,0.00011899,2]
[421024326,1776943524553,-300.0,0.00011899,2]
[421024327,1776943524574,-306.58509307,0.000119,2]
[421024328,1776943646187,-284.70839292,0.000119,2]
[421024329,1776943770142,-1408.70651401,0.000119,2]
[421024330,1776943770165,-602.94177724,0.000119,2]
[421024331,1776943770188,-150.0,0.00012482,2]
[421024332,1776943770209,-300.0,0.00013064,2]
[421024333,1776943770230,-420.0,0.00013064,2]
[421024334,1776943770250,-357.0,0.00013088,2]
[421024335,1776943770270,-1500.0,0.00013699,2]
[421024336,1776943770290,-1500.0,0.00013699,2]
[421024337,1776943770309,-1500.0,0.00013699,2]
[421024338,1776943770330,-1000.0,0.00013699,2]
[421024339,1776943770349,-1500.0,0.00013699,2]
[421024340,1776943770370,-52.91534956,0.00013699,2]
[421024435,1776943838097,-1447.08465044,0.00013699,2]
[421024437,1776943838107,-1505.140176,0.00013699,2]
[421024439,1776943838116,-177.0,0.00014482,2]
[421024441,1776943838125,-43.54177455,0.00015,2]
[421024443,1776943838136,-356.45822545,0.00015,2]
[421024445,1776943838146,-152.0,0.00015201,7]
[421024447,1776943838155,-300.0,0.00016059,2]
[421024449,1776943838164,-200.22852325,0.0001606,2]
[421024451,1776943838172,-200.0,0.0001606,3]
[421024453,1776943838181,-200.0,0.0001606,2]
[421024454,1776943838191,-200.0,0.0001606,2]
[421024456,1776943838200,-200.12288441,0.0001606,2]
[421024458,1776943838210,-204.0,0.00016482,2]
[421024460,1776943838219,-420.0,0.00017557,2]
[421024462,1776943838228,-500.0,0.00018,2]
[421024464,1776943838238,-231.0,0.00018482,2]
[421024466,1776943838247,-7828.6055486,0.00018639,2]
[421024468,1776943838256,-2971.14791456,0.00018639,2]
[421024470,1776943838267,-435.0,0.00018639,2]
[421024473,1776943838278,-1027.36814034,0.00018639,2]
[421024475,1776943838287,-587.0,0.00019194,2]
[421024476,1776943838298,-455.8002903,0.00019852,2]
[421024478,1776943838307,-400.0,0.0001989,4]
[421024480,1776943838316,-500.0,0.00019894,2]
[421024482,1776943838325,-500.0,0.00019894,2]
[421024484,1776943838334,-500.0,0.00019894,2]
[421024486,1776943838343,-500.0,0.00019894,2]
[421024488,1776943838354,-500.62489724,0.00019894,2]
[421024490,1776943838363,-500.0,0.00019894,2]
[421024492,1776943838372,-500.0,0.00019894,2]
[421024494,1776943838381,-500.0,0.00019894,2]
[421024496,1776943838390,-500.0,0.00019894,2]
[421024497,1776943838399,-500.0,0.00019894,2]
[421024499,1776943838408,-500.0,0.00019894,2]
[421024501,1776943838417,-500.0,0.00019894,2]
[421024503,1776943838426,-500.0,0.00019894,2]
[421024505,1776943838435,-500.0,0.00019894,2]
[421024507,1776943838445,-500.0,0.00019894,2]
[421024509,1776943838454,-500.0,0.00019894,2]
[421024511,1776943838463,-500.0,0.00019894,2]
[421024513,1776943838473,-500.0,0.00019894,2]
[421024515,1776943838482,-500.0,0.00019894,2]
[421024517,1776943838492,-158.89355312,0.00019894,2]
[421024519,1776943838501,-500.0,0.00019894,2]
[421024521,1776943838510,-500.0,0.00019894,2]
[421024523,1776943838520,-500.0,0.00019894,2]
[421024524,1776943838529,-500.0,0.00019894,2]
[421024525,1776943838537,-500.0,0.00019894,2]
[421024526,1776943838546,-500.0,0.00019894,2]
[421024527,1776943838555,-500.0,0.00019894,2]
[421024529,1776943838565,-500.0,0.00019894,2]
[421024530,1776943838573,-500.0,0.00019894,2]
[421024531,1776943838582,-500.0,0.00019894,2]
[421024533,1776943838591,-500.0,0.00019894,2]
[421024535,1776943838601,-500.0,0.00019894,2]
[421024537,1776943838610,-500.0,0.00019894,2]
[421024539,1776943838619,-500.0,0.00019894,2]
[421024541,1776943838627,-500.0,0.00019894,2]
[421024543,1776943838636,-500.0,0.00019894,2]
[421024545,1776943838646,-500.0,0.00019894,2]
[421024547,1776943838654,-500.0,0.00019894,2]
[421024549,1776943838663,-500.0,0.00019894,2]
[421024551,1776943838672,-500.0,0.00019894,2]
[421024553,1776943838682,-500.0,0.00019894,2]
[421024555,1776943838692,-500.0,0.00019894,2]
[421024556,1776943838703,-500.0,0.00019894,2]
[421024558,1776943838712,-500.0,0.00019894,2]
[421024560,1776943838721,-500.0,0.00019894,2]
[421024562,1776943838730,-500.0,0.00019894,2]
[421024564,1776943838739,-365.96156682,0.00019894,2]
[421024567,1776943838756,-500.0,0.00019894,2]
[421024569,1776943838767,-1223.34785982,0.000199,2]
[421024571,1776943838777,-3066.68321205,0.000199,2]
[421024573,1776943838786,-2784.00132289,0.000199,2]
[421024575,1776943838795,-3082.2677312,0.000199,2]
[421024577,1776943838805,-3380.53413959,0.000199,2]
[421024579,1776943838814,-726.31174709,0.000199,2]
[421024581,1776943838824,-74215.21385837,0.000199,2]
[421024583,1776943838833,-342.23548034,0.00019999,2]
[421024585,1776943838842,-6250.01635575,0.0002,2]
[421024587,1776943838852,-143096.39306961,0.0002,2]
[421024589,1776943838865,-29118.36803948,0.0002,2]
[421024682,1776943840302,-1018.68966152,0.0002,2]
[421024720,1776943840719,-0.06027189,0.0002,2]
[421025274,1776943846244,-31.63426588,0.0002,2]
[421025276,1776943846256,-37749.36116126,0.0002,2]
[421025285,1776943846330,-67.0561606,0.0002,2]
[421025287,1776943846342,-14023.4333473,0.0002,2]
[421025721,1776944804139,-171.02632281,9.878e-05,18]
[421025722,1776944844101,-128.97367719,9.878e-05,18]
[421025723,1776944844124,-79.68439792,0.00011114,2]
[421025724,1776944957110,-70.31560208,0.00011114,2]
[421025725,1776944957133,-161.41786289,0.0001235,2]
[421025726,1776944964145,-1303.97983505,0.0001235,2]
[421025727,1776944967084,-3534.60230206,0.0001235,2]
[421025728,1776944967110,-27.5713903,0.00012638,2]
[421025729,1776945032019,-1120.78017483,0.00012512,2]
[421025730,1776945032072,-3879.21982517,0.00012512,2]
[421025731,1776945032083,-1323.35761035,0.00012638,2]
[421025732,1776945032092,-163.97145685,0.00012729,2]
[421025733,1776945032102,-300.0,0.00012934,2]
[421025734,1776945032111,-300.0,0.00012935,2]
[421025735,1776945032120,-300.0,0.00012935,2]
[421025736,1776945032130,-1200.0,0.00012935,2]
[421025737,1776945032140,-153.0,0.00012936,2]
[421025738,1776945032149,-994.59764827,0.00012938,2]
[421025740,1776945032161,-2183.36093487,0.00012938,2]
[421025742,1776945032170,-3393.14868574,0.00012938,2]
[421025883,1776945039237,-29192.03279583,0.00012938,2]
[421025884,1776945039248,-163.97145685,0.00012983,7]
[421025885,1776945039257,-3392.73025049,0.00013038,2]
[421025886,1776945039267,-177.0,0.00013114,2]
[421025887,1776945039277,-3822.2735852,0.00013238,2]
[421025888,1776945039286,-163.97145685,0.00013365,14]
[421025889,1776945039295,-2249.03782651,0.00013438,2]
[421025890,1776945039307,-1788.00742604,0.00013438,2]
[421025891,1776945039317,-4415.3834439,0.00013538,2]
[421025892,1776945039327,-1000.0,0.00013699,2]
[421025893,1776945039336,-4166.61599867,0.00014087,2]
[421025894,1776945039346,-7821.6647659,0.00014138,2]
[421025895,1776945039356,-420.0,0.00014186,2]
[421025896,1776945039365,-1275.0,0.00014229,2]
[421025897,1776945039375,-7891.53449733,0.00014238,2]
[421025898,1776945039385,-562.87859962,0.00014409,2]
[421025899,1776945039394,-8550.19373909,0.00014438,2]
[421025921,1776945047315,-5000.0,0.00014294,2]
[421025922,1776945047326,-262.95580067,0.00014438,2]
[421025923,1776945047336,-7551.36990313,0.00014538,2]
[421025927,1776945047910,-929.08524119,0.00014538,2]
[421025928,1776945662384,-549.02046207,7.524e-05,2]
[421025929,1776945662397,-4450.97953793,7.524e-05,2]
[421025930,1776945662406,-549.02046207,7.6e-05,2]
[421025931,1776945898637,-4499.38285479,7.301e-05,2]
[421025932,1776945898660,-5000.0,7.375e-05,2]
[421025933,1776945898683,-150.0,7.487e-05,2]
[421025934,1776945898705,-300.0,7.598e-05,2]
[421025935,1776945898725,-50.61714521,7.599e-05,2]
[421025936,1776945901380,-157.38285479,7.599e-05,2]
[421025937,1776945901401,-3853.84098467,7.6e-05,2]
[421025938,1776945901424,-177.0,9.487e-05,2]
[421025939,1776945901446,-5811.77616054,0.0001,2]
[421025940,1776945902515,-300.0,9.999e-05,2]
[421025941,1776945902540,-300.0,9.999e-05,2]
[421025942,1776945902562,-462.28352269,0.0001,2]
[421025943,1776945969030,-5000.0,9.8e-05,2]
[421025944,1776945969062,-2303.32005909,9.899e-05,2]
[421025945,1776945969087,-300.0,9.999e-05,2]
[421025946,1776946044125,-569.12302954,0.00010998,2]
[421025947,1776946044832,319.0,1e-05,2]
[421025948,1776946074240,-152.0,0.00010873,7]
[421025949,1776946074265,-152.0,0.00010873,7]
[421025950,1776946074288,-630.87697046,0.00010998,2]
[421025951,1776946074310,-300.0,0.00010998,2]
[421025952,1776946074332,-2902.12302954,0.00010999,2]
[421025953,1776946147124,-300.0,0.00010998,2]
[421025954,1776946147154,-150.0,0.00010998,2]
[421025955,1776946147182,-1022.59870416,0.00010999,2]
[421025956,1776946151601,-5257.27422879,0.00010999,2]
[421025957,1776946151626,-500.0,0.00010999,2]
[421025958,1776946151650,-500.0,0.00010999,2]
[421025959,1776946151669,-469.55391544,0.00010999,2]
[421025960,1776946151689,-500.0,0.00010999,2]
[421025961,1776946151709,-500.0,0.00010999,2]
[421025962,1776946151729,-500.0,0.00010999,2]
[421025963,1776946151752,-500.0,0.00010999,2]
[421025964,1776946151774,-500.0,0.00010999,2]
[421025965,1776946151795,-500.0,0.00010999,2]
[421025966,1776946151815,-500.0,0.00010999,2]
[421025967,1776946151837,-500.0,0.00010999,2]
[421025968,1776946151858,-500.0,0.00010999,2]
[421025969,1776946151883,-500.0,0.00010999,2]
[421025970,1776946151903,-500.0,0.00010999,2]
[421025971,1776946151923,-500.0,0.00010999,2]
[421025972,1776946151942,-500.0,0.00010999,2]
[421025973,1776946151964,-500.0,0.00010999,2]
[421025974,1776946151984,-500.0,0.00010999,2]
[421025975,1776946152006,-500.0,0.00010999,2]
[421025976,1776946152026,-500.0,0.00010999,2]
[421025977,1776946152046,-290.90741168,0.00010999,2]
[421025978,1776946152066,-500.0,0.00010999,2]
[421025979,1776946152086,-500.0,0.00010999,2]
[421025980,1776946152110,-500.0,0.00010999,2]
[421025981,1776946152131,-56.61559623,0.00010999,2]
[421025982,1776946174099,-504.0,0.00010998,2]
[421025983,1776946174120,-443.38440377,0.00010999,2]
[421025984,1776946174143,-500.0,0.00010999,2]
[421025985,1776946174163,-192.01743051,0.00010999,2]
[421025986,1776946174187,-500.0,0.00010999,2]
[421025987,1776946174209,-500.0,0.00010999,2]
[421025988,1776946174230,-500.0,0.00010999,2]
[421025989,1776946174253,-500.0,0.00010999,2]
[421025990,1776946174273,-500.0,0.00010999,2]
[421025991,1776946174297,-500.0,0.00010999,2]
[421025992,1776946174318,-500.0,0.00010999,2]
[421025993,1776946174340,-500.0,0.00010999,2]
[421025994,1776946174363,-500.0,0.00010999,2]
[421025995,1776946174385,-500.0,0.00010999,2]
[421025996,1776946174408,-500.0,0.00010999,2]
[421025997,1776946174428,-500.0,0.00010999,2]
[421025998,1776946174450,-500.0,0.00010999,2]
[421025999,1776946174472,-500.0,0.00010999,2]
[421026000,1776946174493,-500.0,0.00010999,2]
[421026001,1776946174513,-500.0,0.00010999,2]
[421026002,1776946174534,-500.0,0.00010999,2]
[421026003,1776946174558,-500.0,0.00010999,2]
[421026004,1776946174579,-500.0,0.00010999,2]
[421026005,1776946174599,-500.0,0.00010999,2]
[421026006,1776946174629,-500.0,0.00010999,2]
[421026007,1776946174651,-500.0,0.00010999,2]
[421026008,1776946174672,-500.0,0.00010999,2]
[421026009,1776946174692,-500.0,0.00010999,2]
[421026010,1776946174714,-500.0,0.00010999,2]
[421026011,1776946174735,-500.0,0.00010999,2]
[421026012,1776946174755,-500.0,0.00010999,2]
[421026013,1776946174781,-500.0,0.00010999,2]
[421026014,1776946174803,-500.0,0.00010999,2]
[421026015,1776946174823,-500.0,0.00010999,2]
[421026016,1776946174844,-500.0,0.00010999,2]
[421026017,1776946174866,-500.0,0.00010999,2]
[421026018,1776946174886,-500.0,0.00010999,2]
[421026019,1776946174909,-500.0,0.00010999,2]
[421026020,1776946174929,-500.0,0.00010999,2]
[421026021,1776946174951,-500.0,0.00010999,2]
[421026022,1776946174973,-603.72803388,0.00010999,2]
[421026023,1776946174995,-500.0,0.00010999,2]
[421026024,1776946175017,-500.0,0.00010999,2]
[421026025,1776946175053,-500.0,0.00010999,2]
[421026026,1776946175077,-500.0,0.00010999,2]
[421026027,1776946175098,-500.0,0.00010999,2]
[421026028,1776946175120,-500.0,0.00010999,2]
[421026029,1776946175144,-500.0,0.00010999,2]
[421026030,1776946175167,-500.0,0.00010999,2]
[421026031,1776946175190,-500.0,0.00010999,2]
[421026032,1776946175212,-500.0,0.00010999,2]
[421026033,1776946175235,-500.0,0.00010999,2]
[421026034,1776946175256,-500.0,0.00010999,2]
[421026035,1776946175276,-500.0,0.00010999,2]
[421026036,1776946175299,-422.05882089,0.00010999,2]
[421026037,1776946175320,-500.0,0.00010999,2]
[421026038,1776946175343,-500.0,0.00010999,2]
[421026039,1776946175366,-500.0,0.00010999,2]
[421026040,1776946175387,-500.0,0.00010999,2]
[421026041,1776946175408,-12842.51680074,0.00011,2]
[421026061,1776946232314,-1549.21067812,0.0001089,2]
[421026062,1776946232367,-281.6786739,0.0001089,2]
[421026063,1776946232379,-3169.11064798,0.0001089,2]
[421026064,1776946232388,-300.0,0.00010999,2]
[421026065,1776946232398,-300.0,0.00010999,2]
[421026066,1776946232408,-300.0,0.00010999,2]
[421026067,1776946232419,-930.88935202,0.00010999,2]
[421026068,1776946232432,-269.11064798,0.00010999,2]
[421026069,1776946232442,-200.63714831,0.00011,2]
[421026088,1776946238610,-5117.0661435,0.00011,2]
[421026089,1776946238626,-943.065,0.00011,2]
[421026090,1776946238663,-2075.00998034,0.00011,2]
[421026124,1776946240930,-381.21178026,0.00011,2]
[421026151,1776946246100,-36739.84924598,0.00011,2]
[421026152,1776946246110,-365.38,0.00011,2]
[421026153,1776946246120,-152.0,0.00011002,7]
[421026154,1776946246130,-152.0,0.00011002,7]
[421026155,1776946246140,-152.0,0.00011027,7]
[421026156,1776946246150,-152.0,0.00011038,7]
[421026158,1776946246159,-152.0,0.00011038,7]
[421026159,1776946246169,-200.0,0.0001163,2]
[421026160,1776946246178,-200.0,0.0001163,2]
[421026161,1776946246188,-200.0,0.0001163,2]
[421026162,1776946246197,-200.0,0.0001163,2]
[421026163,1776946246207,-200.39435804,0.0001163,2]
[421026164,1776946246217,-306.58509307,0.000119,2]
[421026165,1776946246227,-390.0,0.00012087,2]
[421026166,1776946246236,-1680.0,0.00012099,2]
[421026167,1776946246246,-3645.78899881,0.000129,2]
[421026168,1776946246255,-3645.78899881,0.000129,2]
[421026169,1776946246265,-152.0,0.00012935,7]
[421026170,1776946246274,-152.0,0.00012948,7]
[421026171,1776946246284,-152.0,0.00012948,7]
[421026172,1776946246294,-177.0,0.00012998,2]
[421026173,1776946246303,-700.0,0.00013309,2]
[421026174,1776946246313,-152.0,0.00013538,7]
[421026175,1776946246322,-152.0,0.00013538,7]
[421026176,1776946246332,-152.0,0.00013538,7]
[421026177,1776946246342,-1000.0,0.00013699,2]
[421026178,1776946246353,-402.36150631,0.00014538,2]
[421026179,1776946246363,-2194.27145138,0.00014738,2]
[421026182,1776946246654,-355.3,0.00014738,2]
[421026183,1776946246795,-6472.57942098,0.00014738,2]
[421026184,1776946246804,-176.12296697,0.00014799,2]
[421026185,1776946246813,-3645.78899881,0.00014899,2]
[421026186,1776946246823,-204.0,0.00014998,2]
[421026187,1776946246833,-243.47525088,0.00015379,2]
[421026188,1776946246842,-9160.26231354,0.00015487,2]
[421026189,1776946246851,-3562.033776,0.00015487,2]
[421026190,1776946246860,-3562.033776,0.00015487,2]
[421026191,1776946246869,-3562.033776,0.00015487,2]
[421026192,1776946246879,-3528.37184883,0.00015487,2]
[421026197,1776947117685,-1187.30518853,0.00010532,2]
[421026198,1776947117715,-150.0,0.00010585,2]
[421026199,1776947117747,-5000.0,0.00010638,2]
[421026200,1776947117777,-500.0,0.00010999,2]
[421026201,1776947117807,-1200.0,0.00011298,2]
[421026202,1776947117833,-1479.62437289,0.000113,2]
[421026203,1776947117863,-300.0,0.00011399,2]
[421026204,1776947117892,-2000.0,0.000114,2]
[421026205,1776947117919,-156.59,0.000114,2]
[421026206,1776947117948,-2000.0,0.000115,2]
[421026207,1776947117977,-2000.0,0.000116,2]
[421026208,1776947118007,-4026.48043858,0.000116,2]
[421026209,1776947140133,-337.5611814,0.000116,2]
[421026210,1776947146095,-6986.09590112,0.000116,2]
[421026211,1776947146119,-2000.0,0.000117,2]
[421026212,1776947146143,-2000.0,0.000118,2]
[421026213,1776947146168,-2000.0,0.000119,2]
[421026214,1776947146191,-620.0342547,0.00012,2]
[421026215,1776947146216,-500.0,0.00012,30]
[421026216,1776947146240,-503.59438568,0.00012,30]
[421026217,1776947146267,-5000.0,0.00012,2]
[421026218,1776947146290,-1680.0,0.00012428,2]
[421026219,1776947146316,-420.0,0.00012521,2]
[421026220,1776947146339,-228.97,0.00012563,2]
[421026221,1776947146364,-177.0,0.00012585,2]
[421026222,1776947146390,-620.00171274,0.000126,2]
[421026223,1776947146414,-184.7296923,0.0001276,2]
[421026224,1776947146437,-488.6361814,0.0001276,2]
[421026225,1776947146461,-836.6360609,0.0001276,2]
[421026226,1776947146485,-2278.6181243,0.000129,2]
[421026227,1776947146506,-180.35007055,0.00013233,14]
[421026228,1776947146530,-2278.61812425,0.00013657,2]
[421026229,1776947146553,-2351.0,0.00013671,2]
[421026230,1776947146574,-1826.75,0.00013698,2]
[421026231,1776947146597,-1826.75,0.00013698,2]
[421026232,1776947146621,-1826.75,0.00013698,2]
[421026233,1776947146644,-1826.75,0.00013698,2]
[421026234,1776947146667,-1826.75,0.00013698,2]
[421026235,1776947146691,-1000.0,0.00013699,2]
[421026236,1776947146716,-420.0,0.00013754,2]
[421026237,1776947146739,-836.6360609,0.00014232,2]
[421026238,1776947146763,-488.6361814,0.00014331,2]
[421026239,1776947146786,-204.0,0.00014585,2]
[421026240,1776947146808,-184.7296923,0.00014611,2]
[421026241,1776947146828,-1826.75,0.00014737,2]
[421026242,1776947146850,-804.0,0.00015038,2]
[421026243,1776947146871,-1826.75,0.00015486,2]
[421026244,1776947146894,-2278.61812425,0.00015514,2]
[421026245,1776947146916,-836.6360609,0.00015704,2]
[421026246,1776947146937,-488.6361814,0.00015902,2]
[421026247,1776947146957,-184.7296923,0.00016462,2]
[421026248,1776947146980,-231.0,0.00016585,2]
[421026249,1776947147000,-243.47525088,0.00016677,7]
[421026250,1776947147023,-198.98971241,0.00017164,2]
[421026251,1776947147044,-500.0,0.00017164,2]
[421026252,1776947147067,-500.0,0.00017164,2]
[421026253,1776947147087,-500.0,0.00017164,2]
[421026254,1776947147109,-399.03553163,0.00017164,2]
[421026255,1776947147132,-500.0,0.00017164,2]
[421026256,1776947147154,-500.0,0.00017164,2]
[421026257,1776947147176,-500.0,0.00017164,2]
[421026258,1776947147199,-460.37280339,0.00017164,2]
[421026259,1776947147224,-500.0,0.00017164,2]
[421026260,1776947147246,-475.35966236,0.00017164,2]
[421026261,1776947147270,-500.0,0.00017164,2]
[421026262,1776947147294,-500.0,0.00017164,2]
[421026263,1776947147320,-1826.75,0.00017165,2]
[421026264,1776947147340,-1826.75,0.00017165,2]
[421026265,1776947147360,-1826.75,0.00017166,2]
[421026266,1776947147384,-836.6360609,0.00017177,2]
[421026267,1776947147405,-2278.61812425,0.00017371,2]
[421026268,1776947147425,-241.8498068,0.00017404,2]
[421026269,1776947147446,-488.6361814,0.00017473,2]
[421026270,1776947147468,-160.0,0.00017513,2]
[421026271,1776947147489,-195.99548303,0.00017643,2]
[421026272,1776947147507,-299.55976927,0.00018,30]
[421026273,1776947147527,-458.8910168,0.00018226,2]
[421026274,1776947147546,-455.80029,0.00018226,2]
[421026275,1776947147565,-455.80029,0.00018253,2]
[421026276,1776947147586,-184.7296923,0.00018313,2]
[421026277,1776947147606,-254.5,0.00018358,2]
[421026278,1776947147628,-258.0,0.00018585,2]
[421026279,1776947147648,-290.0,0.00018712,2]
[421026280,1776947147669,-254.5,0.00018748,2]
[421026281,1776947147690,-445.202766,0.00018782,2]
[421026282,1776947147711,-537.6845,0.00018782,2]
[421026283,1776947147731,-151.0,0.00018782,2]
[421026284,1776947147751,-537.6845,0.00018782,2]
[421026285,1776947147770,-151.0,0.00018782,2]
[421026286,1776947147791,-1957.856,0.00018782,2]
[421026287,1776947147812,-151.0,0.00018782,2]
[421026288,1776947147832,-151.0,0.00018782,2]
[421026289,1776947147853,-151.0,0.00018782,2]
[421026290,1776947147873,-151.0,0.00018782,2]
[421026291,1776947147893,-151.0,0.00018782,2]
[421026292,1776947147914,-151.0,0.00018782,2]
[421026293,1776947147935,-151.0,0.00018782,2]
[421026294,1776947147957,-151.0,0.00018782,2]
[421026295,1776947147977,-151.0,0.00018782,2]
[421026296,1776947148000,-151.0,0.00018782,2]
[421026297,1776947148023,-151.0,0.00018782,2]
[421026298,1776947148046,-151.0,0.00018782,2]
[421026299,1776947148068,-151.0,0.00018782,2]
[421026300,1776947148090,-151.0,0.00018782,2]
[421026301,1776947148110,-151.0,0.00018782,2]
[421026302,1776947148131,-151.0,0.00018782,2]
[421026303,1776947148152,-151.0,0.00018782,2]
[421026304,1776947148173,-151.93550577,0.00018782,2]
[421026305,1776947148194,-2150.738,0.00018782,2]
[421026306,1776947148215,-557.5788265,0.00018837,2]
[421026307,1776947148237,-2030.296672,0.00018837,2]
[421026308,1776947148259,-357.0,0.00018881,2]
[421026309,1776947148279,-578.20924308,0.00018892,2]
[421026310,1776947148300,-2105.41764886,0.00018892,2]
[421026311,1776947148321,-599.60298507,0.00018947,2]
[421026312,1776947148344,-2183.31810187,0.00018947,2]
[421026313,1776947148367,-179.992528,0.00018996,2]
[421026314,1776947148391,-247.241435,0.00018996,7]
[421026315,1776947148413,-160.0,0.00018996,2]
[421026316,1776947148434,-1043.345406,0.00018996,2]
[421026317,1776947148456,-1926.690812,0.00018996,2]
[421026318,1776947148477,-191.799416,0.00018996,7]
[421026319,1776947148497,-2044.59639907,0.00019,7]
[421026320,1776947148518,-5051.35397319,0.00019,30]
[421026321,1776947148541,-621.78829552,0.00019002,2]
[421026322,1776947148562,-332.32103322,0.00019002,2]
[421026323,1776947148584,-644.79446246,0.00019057,2]
[421026324,1776947148604,-160.59184316,0.00019108,2]
[421026325,1776947148625,-500.0,0.00019108,2]
[421026326,1776947148648,-1509.12235269,0.00019108,2]
[421026327,1776947148675,-1509.12235269,0.00019108,2]